lending/lending_fUSD_20241212
["ID","MTS","AMOUNT","RATE_DAILY","PERIOD"]
[345085916,1733992248464,-3250.51,0.00013698,2]
[345085917,1733992248474,-3250.51,0.00013698,2]
[345085918,1733992248485,-3250.51,0.00013698,2]
[345085919,1733992248495,-3250.51,0.00013698,2]
[345085920,1733992248505,-3250.51,0.00013698,2]
[345085921,1733992248515,-3250.51,0.00013698,2]
[345085922,1733992248530,-3250.51,0.00013698,2]
[345085923,1733992248540,-3250.51,0.00013698,2]
[345085924,1733992248552,-3250.51,0.00013698,2]
[345085925,1733992248562,-500.0,0.00013698,2]
[345085926,1733992248573,-3250.51,0.00013698,2]
[345085927,1733992248583,-3250.51,0.00013698,2]
[345085928,1733992248592,-3250.51,0.00013698,2]
[345085929,1733992248603,-3250.51,0.00013698,2]
[345085930,1733992248613,-3250.51,0.00013698,2]
[345085931,1733992248623,-3250.51,0.00013698,2]
[345085932,1733992248632,-500.0,0.00013698,2]
[345085933,1733992248642,-500.0,0.00013698,2]
[345085934,1733992248651,-500.0,0.00013698,2]
[345085935,1733992248660,-500.0,0.00013698,2]
[345085936,1733992248670,-500.0,0.00013698,2]
[345085937,1733992248679,-500.0,0.00013698,2]
[345085938,1733992248689,-500.0,0.00013698,2]
[345085939,1733992248698,-437.09,0.00013698,2]
[345085940,1733992248708,-500.0,0.00013698,2]
[345085941,1733992248718,-500.0,0.00013698,2]
[345085942,1733992248728,-500.0,0.00013698,2]
[345085943,1733992248738,-500.0,0.00013698,2]
[345085944,1733992248748,-500.0,0.00013698,2]
[345085945,1733992248757,-500.0,0.00013698,2]
[345085946,1733992248768,-500.0,0.00013698,2]
[345085947,1733992248778,-500.0,0.00013698,2]
[345085948,1733992248787,-500.0,0.00013698,2]
[345085949,1733992248799,-500.0,0.00013698,2]
[345085950,1733992248809,-500.0,0.00013698,2]
[345085951,1733992248819,-2000.0,0.00013699,2]
[345085952,1733992248828,-2000.0,0.00013699,2]
[345085953,1733992248839,-2000.0,0.00013699,2]
[345085954,1733992248848,-2000.0,0.00013699,2]
[345085955,1733992248858,-500.0,0.00013699,2]
[345085956,1733992248868,-500.0,0.00013699,2]
[345085957,1733992248878,-500.0,0.00013699,2]
[345085958,1733992248888,-500.0,0.00013699,2]
[345085959,1733992248898,-500.0,0.00013699,2]
[345085960,1733992248908,-500.0,0.00013699,2]
[345085961,1733992248919,-500.0,0.00013699,2]
[345085962,1733992248928,-500.0,0.00013699,2]
[345085963,1733992248938,-500.0,0.00013699,2]
[345085964,1733992248949,-500.0,0.00013699,2]
[345085965,1733992248959,-500.0,0.00013699,2]
[345085966,1733992248968,-500.0,0.00013699,2]
[345085967,1733992248979,-500.0,0.00013699,2]
[345085968,1733992248988,-500.0,0.00013699,2]
[345085969,1733992248998,-500.0,0.00013699,2]
[345085970,1733992249008,-500.0,0.00013699,2]
[345085971,1733992249018,-500.0,0.00013699,2]
[345085972,1733992249027,-500.0,0.00013699,2]
[345085973,1733992249037,-500.0,0.00013699,2]
[345085974,1733992249048,-200.0,0.00013699,2]
[345085975,1733992249058,-800.0,0.00013699,2]
[345085976,1733992249068,-800.0,0.00013699,2]
[345085977,1733992249078,-800.0,0.00013699,2]
[345085978,1733992249088,-800.0,0.00013699,2]
[345085979,1733992249098,-800.0,0.00013699,2]
[345085980,1733992249107,-800.0,0.00013699,2]
[345085981,1733992249118,-800.0,0.00013699,2]
[345085982,1733992249128,-242.146608,0.00013699,2]
[345085983,1733992249138,-242.146608,0.00013699,2]
[345085984,1733992249148,-242.146608,0.00013699,2]
[345085985,1733992249158,-800.0,0.00013699,2]
[345085986,1733992249168,-242.146608,0.00013699,2]
[345085987,1733992249177,-242.146608,0.00013699,2]
[345085988,1733992249187,-242.146608,0.00013699,2]
[345085989,1733992249196,-242.146608,0.00013699,2]
[345085990,1733992249206,-242.146608,0.00013699,2]
[345085991,1733992249216,-242.146608,0.00013699,2]
[345085992,1733992249226,-242.146608,0.00013699,2]
[345085993,1733992249236,-9788.62,0.00013699,2]
[345085994,1733992249247,-258.64,0.00013699,2]
[345085995,1733992249257,-800.0,0.00013699,2]
[345085996,1733992249267,-34383.21,0.00013699,2]
[345085997,1733992249277,-200.0,0.00013699,2]
[345085998,1733992249287,-800.0,0.00013699,2]
[345085999,1733992249298,-12558.99,0.00013699,2]
[345086000,1733992249313,-800.0,0.00013699,2]
[345086001,1733992249323,-800.0,0.00013699,2]
[345086002,1733992249333,-800.0,0.00013699,2]
[345086003,1733992249342,-718.81,0.00013699,2]
[345086004,1733992249353,-4000.0,0.00013699,2]
[345086005,1733992249363,-800.0,0.00013699,2]
[345086006,1733992249373,-800.0,0.00013699,2]
[345086007,1733992249383,-800.0,0.00013699,2]
[345086008,1733992249393,-800.0,0.00013699,2]
[345086009,1733992249403,-500.0,0.00013699,2]
[345086010,1733992249413,-32566.89,0.00013699,2]
[345086011,1733992249422,-800.0,0.00013699,2]
[345086012,1733992249432,-350.0,0.00013699,2]
[345086013,1733992249443,-350.0,0.00013699,2]
[345086014,1733992249453,-151.0,0.00013699,2]
[345086015,1733992249463,-217.490043,0.00013699,2]
[345086016,1733992249679,-217.490043,0.00013699,2]
[345086017,1733992249689,-500.0,0.00013699,2]
[345086018,1733992249700,-500.0,0.00013699,2]
[345086019,1733992249709,-612.9,0.00013699,2]
[345086020,1733992249719,-437.5,0.00013699,2]
[345086021,1733992249728,-630.12,0.00013699,2]
[345086022,1733992249737,-448.7,0.00013699,2]
[345086023,1733992249746,-153.54,0.00013699,2]
[345086024,1733992249756,-500.0,0.00013699,2]
[345086025,1733992249765,-449.17684852,0.00013699,2]
[345086026,1733992249775,-426.04,0.00013699,2]
[345086027,1733992249784,-196.94,0.00013699,2]
[345086028,1733992249792,-500.0,0.00013699,2]
[345086029,1733992249803,-500.0,0.00013699,2]
[345086030,1733992249812,-500.0,0.00013699,2]
[345086031,1733992249822,-2333.54,0.00013699,2]
[345086032,1733992249831,-629.09790895,0.00013699,2]
[345086033,1733992249841,-301.72,0.00013699,2]
[345086034,1733992249852,-500.0,0.00013699,2]
[345086035,1733992249861,-1763.27,0.000137,2]
[345086036,1733992249871,-1763.27,0.000137,2]
[345086037,1733992249881,-1763.27,0.000137,2]
[345086038,1733992249891,-1763.27,0.000137,2]
[345086039,1733992249900,-1763.27,0.000137,2]
[345086040,1733992249910,-1763.27,0.000137,2]
[345086041,1733992249920,-1763.27,0.000137,2]
[345086042,1733992249930,-1763.27,0.000137,2]
[345086043,1733992249940,-1763.27,0.000137,2]
[345086044,1733992249951,-1763.27,0.000137,2]
[345086045,1733992249960,-5276.99,0.000137,2]
[345086046,1733992249971,-5276.99,0.000137,2]
[345086047,1733992249980,-5276.99,0.000137,2]
[345086048,1733992249989,-5276.99,0.000137,2]
[345086049,1733992250000,-5276.99,0.000137,2]
[345086050,1733992250011,-1056.0,0.0001381,2]
[345086051,1733992250020,-500.0,0.00013844,2]
[345086052,1733992250030,-500.0,0.00013862,2]
[345086053,1733992250039,-150.0,0.00013862,2]
[345086054,1733992250050,-500.0,0.00013862,2]
[345086055,1733992250059,-3454.0,0.00013862,2]
[345086056,1733992250068,-500.0,0.00013862,2]
[345086057,1733992250078,-432.37,0.00013887,2]
[345086058,1733992250088,-500.0,0.00013899,2]
[345086059,1733992250098,-500.0,0.00013899,2]
[345086060,1733992250108,-555.44,0.00013899,2]
[345086061,1733992250118,-500.0,0.00013899,2]
[345086062,1733992250128,-500.0,0.00013899,2]
[345086063,1733992250139,-500.0,0.00013899,2]
[345086064,1733992250152,-444.1174448,0.00013899,2]
[345086065,1733992250162,-500.0,0.00013899,2]
[345086066,1733992250172,-500.0,0.00013899,2]
[345086067,1733992250181,-500.0,0.00013899,2]
[345086068,1733992250190,-500.0,0.00013899,2]
[345086069,1733992250200,-485.47342198,0.00013899,2]
[345086070,1733992250209,-500.0,0.00013899,2]
[345086071,1733992250219,-500.0,0.00013899,2]
[345086072,1733992250228,-500.0,0.00013899,2]
[345086073,1733992250237,-500.0,0.00013899,2]
[345086074,1733992250247,-500.0,0.00013899,2]
[345086075,1733992250256,-500.0,0.00013899,2]
[345086076,1733992250268,-500.0,0.00013899,2]
[345086077,1733992250278,-500.0,0.00013899,2]
[345086078,1733992250287,-500.0,0.00013899,2]
[345086079,1733992250298,-500.0,0.00013899,2]
[345086080,1733992250308,-7501.85869065,0.000139,2]
[345086081,1733992250317,-2000.0,0.000139,30]
[345086082,1733992250327,-300.0,0.000139,5]
[345086083,1733992250336,-2000.0,0.0001391,30]
[345086084,1733992250346,-500.0,0.00013919,2]
[345086085,1733992250355,-500.0,0.00013919,2]
[345086086,1733992250364,-2256.962197,0.0001392,30]
[345086087,1733992250374,-963.81,0.00013968,2]
[345086088,1733992250383,-1000.0,0.00013973,2]
[345086089,1733992250392,-659.8905,0.00013999,2]
[345086090,1733992250402,-575.09489278,0.00014,2]
[345086091,1733992250411,-269.89548242,0.00014,2]
[345086092,1733992250421,-1358.0,0.00014,2]
[345086093,1733992250431,-50000.0,0.00014,2]
[345086094,1733992250440,-152.0,0.00014049,10]
[345086095,1733992250449,-150.0,0.00014079,2]
[345086096,1733992250459,-1000.0,0.00014093,2]
[345086097,1733992250469,-500.0,0.00014136,2]
[345086098,1733992250478,-150.0,0.00014136,2]
[345086099,1733992250488,-500.0,0.00014136,2]
[345086100,1733992250498,-3454.0,0.00014136,2]
[345086101,1733992250507,-500.0,0.00014136,2]
[345086102,1733992250517,-2000.0,0.00014142,2]
[345086103,1733992250531,-5000.0,0.00014143,2]
[345086104,1733992250541,-153.0,0.000142,30]
[345086105,1733992250552,-592.0,0.00014269,2]
[345086106,1733992250562,-500.0,0.00014389,2]
[345086107,1733992250574,-500.0,0.00014389,2]
[345086108,1733992250583,-358.6,0.00014389,2]
[345086109,1733992250593,-500.0,0.00014389,2]
[345086110,1733992250604,-386.24,0.00014389,2]
[345086111,1733992250614,-9820.77781244,0.0001439,2]
[345086112,1733992250623,-900.0,0.00014392,2]
[345086113,1733992250633,-591.68715116,0.0001441,2]
[345086114,1733992250642,-500.0,0.0001441,2]
[345086115,1733992250652,-3454.0,0.0001441,2]
[345086116,1733992250661,-500.0,0.0001441,2]
[345086117,1733992250672,-634.0,0.00014459,2]
[345086118,1733992250681,-12400.0,0.00014463,7]
[345086119,1733992250691,-201.04,0.00014468,2]
[345086120,1733992250701,-152.0,0.00014476,11]
[345086121,1733992250710,-1358.0,0.000145,2]
[345086122,1733992250720,-1056.0,0.00014537,2]
[345086123,1733992250729,-700.0,0.00014666,2]
[345086124,1733992250738,-5000.0,0.00014678,10]
[345086125,1733992250748,-500.0,0.00014684,2]
[345086126,1733992250757,-3454.0,0.00014684,2]
[345086127,1733992250767,-500.0,0.00014684,2]
[345086128,1733992250777,-153.0,0.000148,30]
[345086129,1733992250787,-5226.36,0.000148,7]
[345086130,1733992250796,-5226.36,0.000148,7]
[345086131,1733992250806,-5226.36,0.000148,7]
[345086132,1733992250815,-5226.36,0.000148,7]
[345086133,1733992250825,-600.0,0.000149,5]
[345086134,1733992250834,-214.3904149,0.000149,2]
[345086135,1733992250844,-152.0,0.00014903,12]
[345086136,1733992250853,-500.0,0.00014958,2]
[345086137,1733992250863,-3454.0,0.00014958,2]
[345086138,1733992250873,-500.0,0.00014958,2]
[345086139,1733992250883,-500.0,0.00014999,2]
[345086140,1733992250893,-500.0,0.00014999,2]
[345086141,1733992250903,-500.0,0.00014999,2]
[345086142,1733992250912,-500.0,0.00014999,2]
[345086143,1733992250921,-500.0,0.00014999,2]
[345086144,1733992250930,-262.96,0.00014999,2]
[345086145,1733992250940,-2333.54,0.00014999,2]
[345086146,1733992250949,-2333.54,0.00014999,2]
[345086147,1733992250959,-500.0,0.00014999,2]
[345086148,1733992250968,-500.0,0.00014999,2]
[345086149,1733992250978,-500.0,0.00014999,2]
[345086150,1733992250987,-500.0,0.00014999,2]
[345086151,1733992250996,-500.0,0.00014999,2]
[345086152,1733992251006,-500.0,0.00014999,2]
[345086153,1733992251015,-500.0,0.00014999,2]
[345086154,1733992251025,-500.0,0.00014999,2]
[345086155,1733992251034,-500.0,0.00014999,2]
[345086156,1733992251043,-500.0,0.00014999,2]
[345086157,1733992251054,-500.0,0.00014999,2]
[345086158,1733992251063,-500.0,0.00014999,2]
[345086159,1733992251073,-500.0,0.00014999,2]
[345086160,1733992251083,-500.0,0.00014999,2]
[345086161,1733992251093,-500.0,0.00014999,2]
[345086162,1733992251103,-500.0,0.00014999,2]
[345086163,1733992251113,-500.0,0.00014999,2]
[345086164,1733992251122,-5252.86916175,0.00015,14]
[345086165,1733992251132,-14847.88384708,0.00015,2]
[345086166,1733992251142,-412.24044935,0.00015,10]
[345086167,1733992251152,-4000.0,0.00015,2]
[345086168,1733992251161,-57931.0,0.00015,3]
[345086169,1733992251171,-122926.0,0.00015,3]
[345086170,1733992251180,-836.28068728,0.00015,2]
[345086171,1733992251190,-10000.000001,0.00015,7]
[345086172,1733992251200,-400.000001,0.00015,3]
[345086173,1733992251209,-902.65598865,0.00015,3]
[345086174,1733992251219,-500.0,0.00015,2]
[345086175,1733992251229,-1950.39916827,0.00015,2]
[345086176,1733992251238,-33026.46926742,0.00015,2]
[345086177,1733992251248,-961.61,0.00015,2]
[345086178,1733992251258,-34813.27399541,0.00015,2]
[345086179,1733992251268,-1005.9506454,0.00015,2]
[345086180,1733992251277,-5464.65007002,0.00015,3]
[345086182,1733992296266,-538.34992998,0.00015,3]
[345086183,1733992296276,-500.0,0.00015,2]
[345086184,1733992296285,-500.0,0.00015,2]
[345086185,1733992296295,-11186.0,0.00015,2]
[345086186,1733992296304,-1358.0,0.00015,2]
[345086187,1733992296313,-151.0,0.00015,2]
[345086188,1733992296322,-217.490043,0.00015,2]
[345086189,1733992296331,-217.490044,0.00015,2]
[345086190,1733992296343,-242.146608,0.00015,2]
[345086191,1733992296352,-242.146608,0.00015,2]
[345086192,1733992296362,-150.1050144,0.00015,15]
[345086193,1733992296371,-500.0,0.00015054,2]
[345086194,1733992296381,-500.0,0.00015054,2]
[345086195,1733992296400,-500.0,0.00015054,2]
[345086196,1733992296409,-500.0,0.00015054,2]
[345086197,1733992296419,-500.0,0.00015054,2]
[345086198,1733992296428,-500.0,0.00015054,2]
[345086199,1733992296437,-500.0,0.00015054,2]
[345086200,1733992296446,-500.0,0.00015054,2]
[345086201,1733992296455,-500.0,0.00015054,2]
[345086202,1733992296464,-500.0,0.00015054,2]
[345086203,1733992296474,-500.0,0.00015054,2]
[345086204,1733992296484,-500.0,0.00015054,2]
[345086205,1733992296493,-500.0,0.00015054,2]
[345086206,1733992296503,-500.0,0.00015054,2]
[345086207,1733992296512,-500.0,0.00015054,2]
[345086208,1733992296521,-47292.74531225,0.00015055,2]
[345086209,1733992296531,-173.34,0.00015067,2]
[345086210,1733992296542,-300.0,0.00015068,2]
[345086211,1733992296551,-5226.36,0.00015073,7]
[345086212,1733992296561,-5226.36,0.00015073,7]
[345086213,1733992296570,-296.22958164,0.000151,2]
[345086214,1733992296579,-7263.8625252,0.0001511,2]
[345086215,1733992296590,-2390.85,0.00015124,2]
[345086216,1733992296599,-432.37,0.00015149,2]
[345086217,1733992296610,-816.7265,0.000152,2]
[345086218,1733992296619,-200.91,0.00015205,2]
[345086219,1733992296629,-559.34512281,0.00015232,2]
[345086220,1733992296639,-3454.0,0.00015232,2]
[345086221,1733992296648,-500.0,0.00015232,2]
[345086222,1733992296657,-1221.83131278,0.00015235,2]
[345086223,1733992296670,-1517.64,0.000153,2]
[345086224,1733992296680,-1056.0,0.00015302,2]
[345086225,1733992296690,-152.0,0.0001533,13]
[345086226,1733992296699,-500.0,0.00015346,2]
[345086227,1733992296708,-500.0,0.00015346,2]
[345086228,1733992296718,-500.0,0.00015346,2]
[345086229,1733992296728,-5226.36,0.00015347,7]
[345086230,1733992296739,-5226.36,0.00015347,7]
[345086231,1733992296749,-24.13574687,0.00015371,2]
[345086232,1733992296762,-475.86425313,0.00015371,2]
[345086233,1733992296771,-69.66376294,0.00015371,2]
[345086234,1733992296782,-320.2076522,0.00015371,2]
[345086235,1733992296794,-110.12858486,0.00015371,2]
[345086236,1733992296803,-500.0,0.00015371,2]
[345086237,1733992296813,-500.0,0.00015371,2]
[345086238,1733992296822,-376.10461478,0.00015371,2]
[345086239,1733992296835,-123.89538522,0.00015371,2]
[345086240,1733992296844,-500.0,0.00015371,2]
[345086241,1733992296855,-522.0,0.00015371,2]
[345086242,1733992296864,-500.0,0.00015371,2]
[345086243,1733992296873,-500.0,0.00015371,2]
[345086244,1733992296882,-500.0,0.00015371,2]
[345086245,1733992296891,-500.0,0.00015371,2]
[345086246,1733992296902,-500.0,0.00015371,2]
[345086247,1733992296912,-500.0,0.00015371,2]
[345086248,1733992296922,-500.0,0.00015371,2]
[345086249,1733992296933,-500.0,0.00015371,2]
[345086250,1733992296942,-500.0,0.00015371,2]
[345086251,1733992296952,-500.0,0.00015371,2]
[345086252,1733992296962,-500.0,0.00015371,2]
[345086253,1733992296972,-500.0,0.00015371,2]
[345086254,1733992296982,-500.0,0.00015371,2]
[345086255,1733992296992,-500.0,0.00015371,2]
[345086256,1733992297001,-500.0,0.00015371,2]
[345086257,1733992297010,-500.0,0.00015371,2]
[345086258,1733992297020,-500.0,0.00015371,2]
[345086259,1733992297029,-500.0,0.00015371,2]
[345086260,1733992297038,-500.0,0.00015371,2]
[345086261,1733992297048,-500.0,0.00015371,2]
[345086262,1733992297057,-500.0,0.00015371,2]
[345086263,1733992297067,-500.0,0.00015371,2]
[345086264,1733992297076,-500.0,0.00015371,2]
[345086265,1733992297087,-500.0,0.00015371,2]
[345086266,1733992297098,-500.0,0.00015371,2]
[345086267,1733992297107,-500.0,0.00015371,2]
[345086268,1733992297117,-500.0,0.00015371,2]
[345086269,1733992297127,-500.0,0.00015371,2]
[345086270,1733992297137,-500.0,0.00015371,2]
[345086271,1733992297147,-500.0,0.00015371,2]
[345086272,1733992297157,-500.0,0.00015371,2]
[345086273,1733992297167,-500.0,0.00015371,2]
[345086274,1733992297177,-500.0,0.00015371,2]
[345086275,1733992297186,-3173.43787343,0.00015394,2]
[345086276,1733992297197,-15899.010896,0.000154,2]
[345086277,1733992297207,-483.52135034,0.000154,2]
[345086278,1733992297217,-153.0,0.000154,30]
[345086279,1733992297227,-1358.0,0.000155,3]
[345086280,1733992297236,-3454.0,0.00015506,2]
[345086281,1733992297246,-500.0,0.00015506,2]
[345086282,1733992297256,-1500.0,0.0001551,2]
[345086283,1733992297266,-5226.36,0.0001562,7]
[345086284,1733992297275,-5226.36,0.0001562,7]
[345086285,1733992297285,-1000.0,0.00015658,2]
[345086286,1733992297295,-500.0,0.00015699,2]
[345086287,1733992297305,-173.90415183,0.00015699,2]
[345086288,1733992297315,-500.0,0.00015699,2]
[345086289,1733992297325,-500.0,0.00015699,2]
[345086290,1733992297335,-2333.54,0.00015699,2]
[345086291,1733992297345,-500.0,0.00015699,2]
[345086292,1733992297354,-500.0,0.00015699,2]
[345086293,1733992297363,-500.0,0.00015699,2]
[345086294,1733992297374,-500.0,0.00015699,2]
[345086295,1733992297384,-500.0,0.00015699,2]
[345086296,1733992297394,-500.0,0.00015699,2]
[345086297,1733992297404,-500.0,0.00015699,2]
[345086298,1733992297414,-501.75,0.00015699,2]
[345086299,1733992297424,-500.0,0.00015699,2]
[345086300,1733992297434,-181.69,0.00015699,2]
[345086301,1733992297443,-69863.68329513,0.000157,2]
[345086302,1733992297456,-5137.70758443,0.000157,2]
[345086303,1733992297472,-4083.39026736,0.000157,2]
[345086304,1733992297649,-1513.56465269,0.000157,2]
[345086305,1733992297919,437.535,0.0001235,2]
[345086306,1733992299405,2973.32,0.00011089,2]
[345086307,1733992299467,2973.32,0.00011099,2]
[345086308,1733992299543,2973.32,0.00011099,2]
[345086309,1733992299593,2973.32,0.00011099,2]
[345086310,1733992299665,2973.32,0.00011099,2]
[345086311,1733992299861,2973.32,0.00011099,2]
[345086312,1733992299909,2973.32,0.00011099,2]
[345086313,1733992299960,2973.32,0.00011099,2]
[345086314,1733992300037,2973.32,0.00011099,2]
[345086315,1733992300093,2973.32,0.00011099,2]
[345086316,1733992300161,2973.32,0.00011099,2]
[345086317,1733992300247,2973.32,0.00011099,2]
[345086318,1733992300357,2973.32,0.00011099,2]
[345086319,1733992300401,2973.32,0.00011099,2]
[345086320,1733992300464,2973.32,0.00011099,2]
[345086321,1733992300514,2973.32,0.00011099,2]
[345086322,1733992300569,2973.32,0.00011099,2]
[345086323,1733992300627,2973.32,0.00011099,2]
[345086324,1733992300685,2973.32,0.00011099,2]
[345086325,1733992300741,2973.32,0.00011099,2]
[345086326,1733992300800,2973.32,0.00011099,2]
[345086327,1733992300858,2973.32,0.00011099,2]
[345086328,1733992300913,2973.32,0.00011099,2]
[345086329,1733992300963,2973.49301073,0.00011099,2]
[345086337,1733992323412,500.0,0.00011089,2]
[345086338,1733992323728,500.0,0.00011099,2]
[345086339,1733992324004,500.0,0.00011099,2]
[345086340,1733992324255,500.0,0.00011099,2]
[345086341,1733992324515,500.0,0.00011099,2]
[345086342,1733992325374,500.0,0.00011099,2]
[345086343,1733992325507,500.0,0.00011099,2]
[345086344,1733992325771,390.13,0.00011099,2]
[345086345,1733992343533,1000.0,0.000126,2]
[345086346,1733992344812,224.9632,0.00013,2]
[345086347,1733992346937,1552.97,0.000117,2]
[345086348,1733992349800,500.0,0.00011089,2]
[345086349,1733992350086,572.36510472,0.00011099,2]
[345086350,1733992362370,150.0,0.000122,2]
[345086351,1733992410616,500.0,9.46e-05,2]
[345086352,1733992412197,500.0,0.000122,2]
[345086353,1733992413079,500.0,0.00011652,2]
[345086354,1733992417002,700.0,0.00011652,2]
[345086355,1733992429813,245.38629875,0.00011089,2]
[345086356,1733992503701,206.0,0.00011089,30]
[345086357,1733992504047,206.0,0.00011663,30]
[345086358,1733992504480,206.0,0.00012238,30]
[345086359,1733992505321,206.0,0.00012812,30]
[345086360,1733992523552,800.0,0.00012537,2]
[345086361,1733992523867,800.0,0.00012537,2]
[345086362,1733992524156,800.0,0.00012537,2]
[345086363,1733992524459,800.0,0.00012537,2]
[345086364,1733992524760,800.0,0.00012537,2]
[345086365,1733992525051,800.0,0.00012537,2]
[345086366,1733992532368,1397.67,0.00012,2]
[345086368,1733992645429,224.0,0.000128,2]
[345086370,1733992717648,1257.91,0.00012,2]
[345086378,1733992789289,2061.92,0.00011794,2]
[345086381,1733992803876,165.0,0.00011089,30]
[345086382,1733992804370,165.0,0.00011663,30]
[345086383,1733992804695,165.0,0.00012238,30]
[345086384,1733992805177,165.0,0.00012812,30]
[345086385,1733992826987,318.20696997,0.00012748,2]
[345086388,1733992893444,450.0,0.00013,2]
[345086389,1733992903612,1132.12,0.00012,2]
[345086392,1733993089720,1018.9,0.00012,2]
[345086393,1733993104528,155.0,0.00011089,30]
[345086394,1733993104875,155.0,0.00011771,30]
[345086395,1733993105184,155.0,0.00012453,30]
[345086396,1733993122409,634.0,0.00011729,2]
[345086397,1733993217188,800.0,0.0001285,2]
[345086398,1733993217552,800.0,0.0001285,2]
[345086399,1733993217848,800.0,0.0001285,2]
[345086400,1733993218141,800.0,0.0001285,2]
[345086401,1733993218435,800.0,0.0001285,2]
[345086402,1733993218786,800.0,0.0001285,2]
[345086403,1733993274632,917.01,0.00012,2]
[345086409,1733993403785,155.0,0.00011089,30]
[345086410,1733993404095,155.0,0.00011928,30]
[345086411,1733993404408,155.0,0.00012768,30]
[345086418,1733993431921,-150.0,0.00013014,2]
[345086419,1733993431931,-500.0,0.00013022,2]
[345086420,1733993431940,-307.55557787,0.00013022,2]
[345086421,1733993431975,-392.44442213,0.00013022,2]
[345086422,1733993431986,-713.0120682,0.00013038,2]
[345086423,1733993432087,-839.73767999,0.00013038,2]
[345086424,1733993432099,-684.98945181,0.00013038,2]
[345086425,1733993432109,-154.65054819,0.00013038,2]
[345086426,1733993432120,-1014.6,0.00013038,2]
[345086427,1733993432250,-830.74945181,0.00013038,2]
[345086428,1733993432260,-150.0,0.00013038,2]
[345086429,1733993432269,-500.0,0.00013039,2]
[345086430,1733993432279,-500.0,0.00013039,2]
[345086431,1733993432289,-565.72377423,0.00013039,2]
[345086432,1733993432299,-500.0,0.00013039,2]
[345086434,1733993432308,-500.0,0.00013039,2]
[345086435,1733993432318,-500.0,0.00013039,2]
[345086438,1733993432327,-517.1794579,0.00013039,2]
[345086439,1733993432338,-500.0,0.00013039,2]
[345086441,1733993432351,-500.0,0.00013039,2]
[345086443,1733993432361,-500.0,0.00013039,2]
[345086444,1733993432370,-500.0,0.00013039,2]
[345086445,1733993432380,-587.87964129,0.00013039,2]
[345086446,1733993432391,-500.0,0.00013039,2]
[345086447,1733993432400,-500.0,0.00013039,2]
[345086448,1733993432410,-148.46767477,0.00013039,2]
[345086501,1733993437865,-351.53232523,0.00013039,2]
[345086502,1733993437875,-352.06431439,0.00013039,2]
[345086504,1733993437883,-500.0,0.00013039,2]
[345086505,1733993437892,-511.66115733,0.00013039,2]
[345086506,1733993437904,-200.0,0.00013583,2]
[345086507,1733993437913,-86.22026709,0.00013584,2]